fUSD/lending_fUSD_20241121
["ID","MTS","AMOUNT","RATE_DAILY","PERIOD"]
[342853227,1732183846240,-151.0,0.00041095,14]
[342853228,1732183846250,-1202.01,0.00041095,18]
[342853229,1732183846259,-151.0,0.00041095,14]
[342853230,1732183846267,-500.0,0.00041095,18]
[342853231,1732183846277,-500.0,0.00041095,18]
[342853232,1732183846286,-500.0,0.00041095,18]
[342853233,1732183846295,-500.0,0.00041095,18]
[342853234,1732183846304,-500.0,0.00041095,18]
[342853235,1732183846313,-500.0,0.00041095,18]
[342853236,1732183846323,-500.0,0.00041095,18]
[342853237,1732183846331,-500.0,0.00041095,18]
[342853238,1732183846340,-500.0,0.00041095,18]
[342853239,1732183846349,-500.0,0.00041095,18]
[342853240,1732183846358,-684.47,0.00041095,18]
[342853241,1732183846367,-500.0,0.00041095,18]
[342853242,1732183846377,-500.0,0.00041095,18]
[342853243,1732183846386,-500.0,0.00041095,18]
[342853244,1732183846395,-598.37,0.00041095,18]
[342853245,1732183846404,-151.0,0.00041095,14]
[342853246,1732183846413,-151.0,0.00041095,14]
[342853247,1732183846427,-500.0,0.00041095,18]
[342853248,1732183846436,-151.0,0.00041095,14]
[342853249,1732183846445,-151.0,0.00041095,14]
[342853250,1732183846455,-500.0,0.00041095,18]
[342853251,1732183846464,-500.0,0.00041095,18]
[342853252,1732183846473,-500.0,0.00041095,18]
[342853253,1732183846482,-1148.5,0.00041095,18]
[342853254,1732183846491,-1875.26,0.00041095,18]
[342853255,1732183846500,-500.0,0.00041095,18]
[342853256,1732183846509,-1692.83,0.00041095,18]
[342853257,1732183846518,-500.0,0.00041095,18]
[342853258,1732183846527,-503.63,0.00041095,18]
[342853259,1732183846536,-1127.55,0.00041095,18]
[342853260,1732183846545,-500.0,0.00041095,18]
[342853261,1732183846553,-500.0,0.00041095,18]
[342853262,1732183846562,-500.0,0.00041095,14]
[342853263,1732183846571,-390.9440419,0.00041095,18]
[342853264,1732183846581,-500.0,0.00041095,18]
[342853265,1732183846590,-500.0,0.00041095,18]
[342853266,1732183846600,-1136.36,0.00041095,18]
[342853267,1732183846609,-1466.47,0.00041095,18]
[342853268,1732183846619,-591.57,0.00041095,18]
[342853269,1732183846629,-500.0,0.00041095,18]
[342853270,1732183846641,-500.0,0.00041095,18]
[342853271,1732183846653,-500.0,0.00041095,18]
[342853272,1732183846662,-1067.49,0.00041095,18]
[342853273,1732183846674,-500.0,0.00041095,18]
[342853274,1732183846683,-500.0,0.00041095,18]
[342853275,1732183846693,-1069.33,0.00041095,18]
[342853276,1732183846702,-500.0,0.00041095,18]
[342853277,1732183846712,-500.0,0.00041095,18]
[342853278,1732183846721,-1397.61,0.00041095,18]
[342853280,1732183846731,-500.0,0.00041095,18]
[342853282,1732183846740,-500.0,0.00041095,18]
[342853283,1732183846749,-500.0,0.00041095,18]
[342853284,1732183846761,-500.0,0.00041095,18]
[342853285,1732183846770,-500.0,0.00041095,2]
[342853286,1732183846779,-500.0,0.00041095,7]
[342853287,1732183846789,-186.928283,0.00041095,18]
[342853288,1732183846798,-1516.81,0.00041095,18]
[342853289,1732183846808,-500.0,0.00041095,18]
[342853290,1732183846817,-500.0,0.00041095,18]
[342853291,1732183846826,-186.928284,0.00041095,18]
[342853292,1732183846836,-2139.45,0.00041095,18]
[342853293,1732183846845,-500.0,0.00041095,18]
[342853294,1732183846855,-500.0,0.00041095,18]
[342853295,1732183846864,-1148.75,0.00041095,18]
[342853296,1732183846874,-631.94,0.00041095,18]
[342853297,1732183846883,-526.1,0.00041095,18]
[342853298,1732183846893,-1175.6,0.00041095,18]
[342853299,1732183846902,-505.86,0.00041095,18]
[342853300,1732183846912,-500.0,0.00041095,18]
[342853301,1732183846922,-500.0,0.00041095,18]
[342853302,1732183846932,-1395.19,0.00041095,18]
[342853303,1732183846942,-500.0,0.00041095,18]
[342853304,1732183846951,-500.0,0.00041095,18]
[342853305,1732183846960,-622.11,0.00041095,18]
[342853306,1732183846970,-622.11,0.00041095,18]
[342853307,1732183846979,-622.11,0.00041095,18]
[342853308,1732183846988,-622.11,0.00041095,18]
[342853309,1732183846999,-500.0,0.00041095,18]
[342853310,1732183847008,-622.11,0.00041095,18]
[342853311,1732183847017,-500.0,0.00041095,18]
[342853312,1732183847026,-622.11,0.00041095,18]
[342853313,1732183847035,-622.11,0.00041095,18]
[342853314,1732183847044,-622.11,0.00041095,18]
[342853315,1732183847053,-500.0,0.00041095,18]
[342853316,1732183847062,-622.11,0.00041095,18]
[342853317,1732183847073,-622.11,0.00041095,18]
[342853318,1732183847085,-622.11,0.00041095,18]
[342853319,1732183847094,-500.0,0.00041095,18]
[342853320,1732183847104,-622.11,0.00041095,18]
[342853321,1732183847113,-622.11,0.00041095,18]
[342853322,1732183847123,-622.11,0.00041095,18]
[342853323,1732183847132,-500.0,0.00041095,18]
[342853324,1732183847141,-622.11,0.00041095,18]
[342853325,1732183847150,-500.0,0.00041095,18]
[342853326,1732183847160,-622.11,0.00041095,18]
[342853327,1732183847172,-622.11,0.00041095,18]
[342853328,1732183847182,-500.0,0.00041095,18]
[342853329,1732183847191,-500.0,0.00041095,18]
[342853330,1732183847200,-500.0,0.00041095,18]
[342853331,1732183847210,-500.0,0.00041095,18]
[342853332,1732183847220,-500.0,0.00041095,18]
[342853333,1732183847229,-151.0,0.00041095,14]
[342853334,1732183847239,-151.0,0.00041095,14]
[342853335,1732183847248,-500.0,0.00041095,18]
[342853336,1732183847258,-151.0,0.00041095,14]
[342853337,1732183847267,-1525.63,0.00041095,18]
[342853338,1732183847276,-930.1,0.00041095,18]
[342853339,1732183847286,-151.0,0.00041095,14]
[342853340,1732183847295,-734.08,0.00041095,18]
[342853341,1732183847304,-1564.67,0.00041095,18]
[342853342,1732183847314,-976.13,0.00041095,18]
[342853343,1732183847324,-500.0,0.00041095,18]
[342853344,1732183847333,-1441.21,0.00041095,18]
[342853345,1732183847342,-500.0,0.00041095,18]
[342853346,1732183847351,-500.0,0.00041095,18]
[342853347,1732183847360,-198.308062,0.00041095,14]
[342853348,1732183847369,-1337.48,0.00041095,18]
[342853349,1732183847377,-500.0,0.00041095,18]
[342853350,1732183847386,-500.0,0.00041095,18]
[342853351,1732183847395,-500.0,0.00041095,18]
[342853352,1732183847404,-500.0,0.00041095,18]
[342853353,1732183847413,-589.85299702,0.00041095,18]
[342853354,1732183847425,-500.0,0.00041095,18]
[342853355,1732183847434,-500.0,0.00041095,18]
[342853356,1732183847444,-1370.79,0.00041095,18]
[342853357,1732183847454,-500.0,0.00041095,18]
[342853358,1732183847463,-1737.71,0.00041095,18]
[342853359,1732183847472,-500.0,0.00041095,18]
[342853360,1732183847481,-605.4,0.00041095,18]
[342853361,1732183847490,-500.0,0.00041095,18]
[342853362,1732183847500,-554.22376046,0.00041095,18]
[342853363,1732183847509,-1343.82,0.00041095,18]
[342853364,1732183847519,-289.00182811,0.00041095,18]
[342853365,1732183847528,-1707.18,0.00041095,18]
[342853366,1732183847538,-2046.39,0.00041095,18]
[342853367,1732183847547,-510.22,0.00041095,18]
[342853368,1732183847557,-500.0,0.00041095,18]
[342853369,1732183847566,-500.0,0.00041095,18]
[342853370,1732183847575,-552.6,0.00041095,18]
[342853371,1732183847585,-552.6,0.00041095,18]
[342853372,1732183847594,-552.6,0.00041095,18]
[342853373,1732183847603,-552.6,0.00041095,18]
[342853374,1732183847612,-552.6,0.00041095,18]
[342853375,1732183847621,-552.6,0.00041095,18]
[342853376,1732183847630,-1707.15,0.00041095,18]
[342853377,1732183847639,-552.6,0.00041095,18]
[342853378,1732183847649,-552.6,0.00041095,18]
[342853379,1732183847659,-552.6,0.00041095,18]
[342853380,1732183847670,-552.6,0.00041095,18]
[342853381,1732183847679,-500.0,0.00041095,18]
[342853382,1732183847687,-552.6,0.00041095,18]
[342853383,1732183847696,-552.6,0.00041095,18]
[342853384,1732183847705,-552.6,0.00041095,18]
[342853385,1732183847714,-552.6,0.00041095,18]
[342853386,1732183847723,-500.0,0.00041095,18]
[342853387,1732183847732,-552.6,0.00041095,18]
[342853388,1732183847742,-552.6,0.00041095,18]
[342853389,1732183847751,-552.6,0.00041095,18]
[342853390,1732183847760,-552.6,0.00041095,18]
[342853391,1732183847770,-552.6,0.00041095,18]
[342853392,1732183847780,-500.0,0.00041095,18]
[342853393,1732183847789,-552.6,0.00041095,18]
[342853394,1732183847799,-500.0,0.00041095,18]
[342853395,1732183847808,-552.6,0.00041095,18]
[342853396,1732183847818,-500.0,0.00041095,18]
[342853397,1732183847829,-552.6,0.00041095,18]
[342853398,1732183847838,-1766.91,0.00041095,18]
[342853399,1732183847848,-552.6,0.00041095,18]
[342853400,1732183847857,-552.68788945,0.00041095,18]
[342853401,1732183847866,-500.0,0.00041095,18]
[342853402,1732183847875,-500.0,0.00041095,18]
[342853403,1732183847885,-500.0,0.00041095,18]
[342853404,1732183847894,-500.0,0.00041095,18]
[342853405,1732183847903,-500.0,0.00041095,18]
[342853406,1732183847912,-500.0,0.00041095,18]
[342853407,1732183847923,-500.0,0.00041095,18]
[342853408,1732183847932,-1483.27,0.00041095,18]
[342853409,1732183847942,-151.0,0.00041095,14]
[342853410,1732183847951,-518.00647325,0.00041095,18]
[342853411,1732183847962,-654.56,0.00041095,18]
[342853412,1732183847972,-527.82,0.00041095,18]
[342853413,1732183847982,-500.0,0.00041095,18]
[342853414,1732183847993,-151.0,0.00041095,14]
[342853415,1732183848002,-151.0,0.00041095,14]
[342853416,1732183848012,-500.0,0.00041095,18]
[342853417,1732183848021,-500.0,0.00041095,18]
[342853418,1732183848030,-500.0,0.00041095,18]
[342853419,1732183848040,-500.0,0.00041095,18]
[342853420,1732183848050,-538.98,0.00041095,18]
[342853421,1732183848060,-365.82022933,0.00041095,18]
[342853422,1732183848071,-767.8,0.00041095,18]
[342853423,1732183848081,-500.0,0.00041095,18]
[342853424,1732183848091,-500.0,0.00041095,18]
[342853425,1732183848100,-500.0,0.00041095,18]
[342853426,1732183848110,-560.46,0.00041095,18]
[342853427,1732183848120,-500.0,0.00041095,18]
[342853428,1732183848130,-3263.97,0.00041095,18]
[342853429,1732183848139,-734.35,0.00041095,18]
[342853430,1732183848149,-1795.65,0.00041095,18]
[342853431,1732183848159,-368.61833296,0.00041095,18]
[342853432,1732183848171,-745.42,0.00041095,18]
[342853433,1732183848180,-500.0,0.00041095,18]
[342853434,1732183848189,-500.0,0.00041095,18]
[342853435,1732183848199,-2180.78,0.00041095,18]
[342853436,1732183848208,-940.46,0.00041095,18]
[342853437,1732183848217,-500.0,0.00041095,18]
[342853438,1732183848226,-2180.78,0.00041095,18]
[342853439,1732183848236,-2180.78,0.00041095,18]
[342853440,1732183848246,-2180.78,0.00041095,18]
[342853441,1732183848256,-500.0,0.00041095,18]
[342853442,1732183848266,-2180.78,0.00041095,18]
[342853443,1732183848275,-2180.78,0.00041095,18]
[342853444,1732183848285,-2180.78,0.00041095,18]
[342853445,1732183848295,-2180.78,0.00041095,18]
[342853446,1732183848304,-500.0,0.00041095,18]
[342853447,1732183848314,-2180.78,0.00041095,18]
[342853448,1732183848324,-2180.78,0.00041095,18]
[342853449,1732183848334,-2180.78,0.00041095,18]
[342853450,1732183848343,-500.0,0.00041095,18]
[342853451,1732183848352,-2180.78,0.00041095,18]
[342853452,1732183848363,-2180.78,0.00041095,18]
[342853453,1732183848371,-500.0,0.00041095,18]
[342853454,1732183848382,-511.66,0.00041095,18]
[342853455,1732183848392,-2180.78,0.00041095,18]
[342853456,1732183848401,-513.62188954,0.00041095,18]
[342853457,1732183848411,-500.0,0.00041095,18]
[342853458,1732183848423,-2180.78,0.00041095,18]
[342853459,1732183848433,-151.0,0.00041095,14]
[342853460,1732183848442,-500.0,0.00041095,18]
[342853461,1732183848452,-2743.59,0.00041095,18]
[342853462,1732183848462,-2480.27,0.00041095,18]
[342853463,1732183848472,-151.0,0.00041095,14]
[342853464,1732183848482,-151.0,0.00041095,14]
[342853465,1732183848492,-500.0,0.00041095,18]
[342853466,1732183848501,-151.0,0.00041095,14]
[342853467,1732183848511,-673.12,0.00041095,18]
[342853468,1732183848521,-150.0,0.00041095,18]
[342853469,1732183848531,-500.0,0.00041095,18]
[342853470,1732183848540,-508.90545312,0.00041095,18]
[342853471,1732183848550,-313.40326253,0.00041095,18]
[342853472,1732183848560,-538.57,0.00041095,18]
[342853473,1732183848570,-500.0,0.00041095,18]
[342853474,1732183848579,-500.0,0.00041095,18]
[342853475,1732183848589,-1133.11,0.00041095,18]
[342853476,1732183848598,-500.0,0.00041095,18]
[342853477,1732183848608,-2483.43,0.00041095,18]
[342853478,1732183848618,-270.59901685,0.00041095,18]
[342853479,1732183848628,-500.0,0.00041095,18]
[342853480,1732183848638,-1970.43,0.00041095,18]
[342853481,1732183848647,-1322.48,0.00041095,18]
[342853482,1732183848657,-500.0,0.00041095,18]
[342853483,1732183848667,-313.32169473,0.00041095,18]
[342853484,1732183848678,-500.0,0.00041095,18]
[342853485,1732183848687,-500.0,0.00041095,18]
[342853486,1732183848697,-1000.0,0.00041095,120]
[342853487,1732183848706,-541.91,0.00041095,18]
[342853488,1732183848716,-151.0,0.00041095,14]
[342853489,1732183848725,-151.0,0.00041095,14]
[342853490,1732183848735,-500.0,0.00041095,18]
[342853491,1732183848745,-500.0,0.00041095,18]
[342853492,1732183848754,-500.0,0.00041095,18]
[342853493,1732183848764,-598.45,0.00041095,18]
[342853494,1732183848774,-500.0,0.00041095,18]
[342853495,1732183848783,-500.0,0.00041095,18]
[342853496,1732183848793,-500.0,0.00041095,18]
[342853497,1732183848802,-545.13,0.00041095,18]
[342853498,1732183848812,-500.0,0.00041095,18]
[342853499,1732183848822,-500.0,0.00041095,18]
[342853500,1732183848831,-500.0,0.00041095,18]
[342853501,1732183848841,-2367.61,0.00041095,18]
[342853502,1732183848851,-500.0,0.00041095,18]
[342853503,1732183848860,-500.0,0.00041095,18]
[342853504,1732183848870,-500.0,0.00041095,18]
[342853505,1732183848880,-536.58049914,0.00041095,18]
[342853506,1732183848889,-500.0,0.00041095,18]
[342853507,1732183848900,-590.64,0.00041095,18]
[342853508,1732183848910,-634.56286094,0.00041095,18]
[342853509,1732183848922,-694.83,0.00041095,18]
[342853510,1732183848932,-500.0,0.00041095,18]
[342853511,1732183848942,-2814.19,0.00041095,18]
[342853512,1732183848952,-500.0,0.00041095,18]
[342853513,1732183848962,-205.64393256,0.00041095,18]
[342853514,1732183848972,-4189.14,0.00041095,18]
[342853515,1732183848981,-500.0,0.00041095,18]
[342853516,1732183848991,-1103.25,0.00041095,18]
[342853517,1732183849001,-500.0,0.00041095,18]
[342853518,1732183849010,-541.83,0.00041095,18]
[342853519,1732183849020,-1128.81,0.00041095,18]
[342853520,1732183849030,-500.0,0.00041095,18]
[342853521,1732183849039,-500.0,0.00041095,18]
[342853522,1732183849048,-313.17582506,0.00041095,18]
[342853523,1732183849057,-500.0,0.00041095,18]
[342853524,1732183849068,-292.15350685,0.00041095,18]
[342853525,1732183849082,-709.4,0.00041095,18]
[342853526,1732183849092,-500.0,0.00041095,18]
[342853527,1732183849101,-1052.51,0.00041095,18]
[342853528,1732183849110,-500.0,0.00041095,18]
[342853529,1732183849120,-645.52,0.00041095,18]
[342853530,1732183849130,-802.55,0.00041095,18]
[342853531,1732183849139,-613.43416056,0.00041095,18]
[342853532,1732183849150,-660.83,0.00041095,18]
[342853533,1732183849161,-500.0,0.00041095,18]
[342853534,1732183849172,-151.0,0.00041095,14]
[342853535,1732183849181,-151.0,0.00041095,14]
[342853536,1732183849191,-151.0,0.00041095,14]
[342853537,1732183849200,-151.0,0.00041095,14]
[342853538,1732183849210,-1273.09,0.00041095,18]
[342853539,1732183849219,-553.25,0.00041095,18]
[342853540,1732183849229,-500.0,0.00041095,18]
[342853541,1732183849240,-500.0,0.00041095,18]
[342853542,1732183849249,-674.18,0.00041095,18]
[342853543,1732183849259,-500.0,0.00041095,18]
[342853544,1732183849268,-151.0,0.00041095,14]
[342853545,1732183849277,-151.0,0.00041095,14]
[342853546,1732183849286,-5306.57,0.00041095,18]
[342853547,1732183849296,-151.0,0.00041095,14]
[342853548,1732183849305,-500.0,0.00041095,18]
[342853549,1732183849315,-241.379996,0.00041095,14]
[342853550,1732183849324,-812.39,0.00041095,18]
[342853551,1732183849333,-500.0,0.00041095,18]
[342853552,1732183849343,-500.0,0.00041095,18]
[342853553,1732183849352,-1366.9,0.00041095,18]
[342853554,1732183849361,-1459.76,0.00041095,18]
[342853555,1732183849370,-500.0,0.00041095,18]
[342853556,1732183849380,-500.0,0.00041095,18]
[342853557,1732183849390,-2557.43,0.00041095,18]
[342853558,1732183849399,-500.0,0.00041095,18]
[342853559,1732183849409,-500.0,0.00041095,18]
[342853560,1732183849419,-500.0,0.00041095,18]
[342853561,1732183849430,-500.0,0.00041095,18]
[342853562,1732183849439,-500.0,0.00041095,18]
[342853563,1732183849449,-500.0,0.00041095,18]
[342853564,1732183849458,-649.47,0.00041095,18]
[342853565,1732183849468,-500.0,0.00041095,18]
[342853566,1732183849478,-501.56383353,0.00041095,18]
[342853567,1732183849487,-1324.61,0.00041095,18]
[342853568,1732183849496,-500.0,0.00041095,18]
[342853569,1732183849505,-190.07047596,0.00041095,18]
[342853570,1732183849515,-500.0,0.00041095,18]
[342853571,1732183849524,-1232.13,0.00041095,18]
[342853572,1732183849533,-174.22700265,0.00041095,18]
[342853573,1732183849543,-500.0,0.00041095,18]
[342853574,1732183849552,-500.0,0.00041095,18]
[342853575,1732183849562,-500.0,0.00041095,18]
[342853576,1732183849570,-1000.0,0.00041095,2]
[342853577,1732183849579,-2534.42,0.00041095,18]
[342853578,1732183849588,-500.0,0.00041095,18]
[342853579,1732183849597,-3066.9,0.00041095,18]
[342853580,1732183849607,-500.0,0.00041095,18]
[342853581,1732183849616,-500.0,0.00041095,18]
[342853582,1732183849627,-500.0,0.00041095,18]
[342853583,1732183849636,-500.0,0.00041095,18]
[342853584,1732183849645,-500.0,0.00041095,18]
[342853585,1732183849656,-500.0,0.00041095,18]
[342853586,1732183849667,-500.0,0.00041095,18]
[342853587,1732183849679,-500.0,0.00041095,18]
[342853588,1732183849688,-500.0,0.00041095,18]
[342853589,1732183849697,-877.88,0.00041095,18]
[342853590,1732183849707,-500.0,0.00041095,18]
[342853591,1732183849716,-639.13,0.00041095,18]
[342853592,1732183849725,-500.0,0.00041095,18]
[342853593,1732183849735,-950.97,0.00041095,18]
[342853594,1732183849746,-821.2,0.00041095,18]
[342853595,1732183849755,-500.0,0.00041095,18]
[342853596,1732183849765,-500.0,0.00041095,18]
[342853597,1732183849774,-151.0,0.00041095,14]
[342853598,1732183849783,-500.0,0.00041095,18]
[342853599,1732183849792,-500.0,0.00041095,18]
[342853600,1732183849801,-500.0,0.00041095,18]
[342853601,1732183849812,-151.0,0.00041095,14]
[342853602,1732183849821,-500.0,0.00041095,18]
[342853603,1732183849831,-151.0,0.00041095,14]
[342853604,1732183849841,-500.0,0.00041095,18]
[342853605,1732183849852,-500.0,0.00041095,18]
[342853606,1732183849865,-151.0,0.00041095,14]
[342853607,1732183849878,-1421.98,0.00041095,18]
[342853608,1732183850011,-500.0,0.00041095,18]
[342853609,1732183850027,-1534.55,0.00041095,18]
[342853610,1732183850036,-500.0,0.00041095,18]
[342853611,1732183850045,-500.0,0.00041095,18]
[342853612,1732183850055,-500.0,0.00041095,18]
[342853613,1732183850066,-500.0,0.00041095,18]
[342853614,1732183850077,-500.0,0.00041095,18]
[342853615,1732183850086,-500.0,0.00041095,18]
[342853616,1732183850096,-954.65,0.00041095,18]
[342853617,1732183850106,-151.0,0.00041095,14]
[342853618,1732183850117,-1649.34,0.00041095,18]
[342853619,1732183850127,-274.83202865,0.00041095,18]
[342853620,1732183850136,-500.0,0.00041095,18]
[342853621,1732183850147,-500.0,0.00041095,18]
[342853622,1732183850157,-266.04206847,0.00041095,18]
[342853623,1732183850166,-501.00850165,0.00041095,18]
[342853624,1732183850177,-2401.94,0.00041095,18]
[342853625,1732183850186,-189.88552934,0.00041095,18]
[342853626,1732183850196,-500.0,0.00041095,18]
[342853627,1732183850205,-151.0,0.00041095,14]
[342853628,1732183850214,-500.0,0.00041095,18]
[342853629,1732183850223,-500.0,0.00041095,18]
[342853630,1732183850233,-151.0,0.00041095,14]
[342853631,1732183850243,-151.0,0.00041095,14]
[342853632,1732183850252,-983.28,0.00041095,18]
[342853633,1732183850261,-500.0,0.00041095,18]
[342853634,1732183850271,-1399.96,0.00041095,18]
[342853635,1732183850280,-151.0,0.00041095,14]
[342853636,1732183850289,-500.0,0.00041095,18]
[342853637,1732183850298,-500.0,0.00041095,18]
[342853638,1732183850308,-500.0,0.00041095,18]
[342853639,1732183850317,-500.0,0.00041095,18]
[342853640,1732183850326,-151.0,0.00041095,14]
[342853641,1732183850335,-191.04308244,0.00041095,18]
[342853642,1732183850344,-607.59,0.00041095,18]
[342853643,1732183850353,-282.592639,0.00041095,14]
[342853644,1732183850363,-522.86243967,0.00041095,18]
[342853645,1732183850372,-2108.59,0.00041095,18]
[342853646,1732183850381,-500.0,0.00041095,18]
[342853647,1732183850391,-500.0,0.00041095,18]
[342853648,1732183850400,-993.14,0.00041095,18]
[342853649,1732183850409,-526.35667602,0.00041095,18]
[342853650,1732183850418,-1061.54,0.00041095,18]
[342853651,1732183850427,-707.41,0.00041095,18]
[342853652,1732183850437,-500.0,0.00041095,18]
[342853653,1732183850446,-500.0,0.00041095,18]
[342853654,1732183850455,-500.0,0.00041095,18]
[342853655,1732183850465,-500.0,0.00041095,18]
[342853656,1732183850474,-2789.85,0.00041095,18]
[342853657,1732183850483,-3892.35,0.00041095,18]
[342853658,1732183850492,-588.46204945,0.00041095,18]
[342853659,1732183850501,-642.33,0.00041095,18]
[342853660,1732183850510,-2253.19,0.00041095,18]
[342853661,1732183850520,-500.0,0.00041095,18]
[342853662,1732183850529,-160.2719112,0.00041095,18]
[342853663,1732183850539,-500.0,0.00041095,18]
[342853664,1732183850548,-500.0,0.00041095,18]
[342853665,1732183850557,-500.0,0.00041095,18]
[342853666,1732183850567,-500.0,0.00041095,18]
[342853667,1732183850576,-2678.13,0.00041095,18]
[342853668,1732183850586,-500.0,0.00041095,18]
[342853669,1732183850595,-500.0,0.00041095,18]
[342853670,1732183850604,-1367.2,0.00041095,18]
[342853671,1732183850614,-649.09,0.00041095,18]
[342853672,1732183850624,-500.0,0.00041095,18]
[342853673,1732183850634,-500.0,0.00041095,18]
[342853674,1732183850644,-500.0,0.00041095,18]
[342853675,1732183850654,-1181.24,0.00041095,18]
[342853676,1732183850665,-500.0,0.00041095,18]
[342853677,1732183850676,-1700.3,0.00041095,18]
[342853678,1732183850685,-500.0,0.00041095,18]
[342853679,1732183850694,-500.0,0.00041095,18]
[342853680,1732183850703,-500.0,0.00041095,18]
[342853681,1732183850712,-560.78,0.00041095,18]
[342853682,1732183850721,-784.39,0.00041095,18]
[342853683,1732183850731,-500.0,0.00041095,18]
[342853684,1732183850740,-500.0,0.00041095,18]
[342853685,1732183850750,-500.0,0.00041095,18]
[342853686,1732183850760,-500.0,0.00041095,18]
[342853687,1732183850770,-1666.44,0.00041095,18]
[342853688,1732183850780,-1289.09,0.00041095,18]
[342853689,1732183850790,-912.19,0.00041095,18]
[342853690,1732183850799,-500.0,0.00041095,18]
[342853691,1732183850809,-1413.9,0.00041095,18]
[342853692,1732183850818,-151.0,0.00041095,14]
[342853693,1732183850827,-151.0,0.00041095,14]
[342853694,1732183850837,-151.0,0.00041095,14]
[342853695,1732183850846,-1168.64,0.00041095,18]
[342853696,1732183850856,-947.98,0.00041095,18]
[342853697,1732183850866,-151.0,0.00041095,14]
[342853698,1732183850875,-960.87,0.00041095,18]
[342853699,1732183850885,-879.54,0.00041095,18]
[342853700,1732183850896,-1148.21,0.00041095,18]
[342853701,1732183850905,-500.0,0.00041095,18]
[342853702,1732183850914,-1553.84,0.00041095,18]
[342853703,1732183850925,-500.0,0.00041095,18]
[342853704,1732183850935,-500.0,0.00041095,18]
[342853705,1732183850944,-714.05,0.00041095,18]
[342853706,1732183850954,-1301.82,0.00041095,18]
[342853707,1732183850964,-151.0,0.00041095,14]
[342853708,1732183850974,-151.0,0.00041095,14]
[342853709,1732183850984,-500.0,0.00041095,18]
[342853710,1732183850993,-151.0,0.00041095,14]
[342853711,1732183851003,-151.0,0.00041095,14]
[342853712,1732183851013,-635.41596636,0.00041095,2]
[342853713,1732183851023,-500.0,0.00041095,18]
[342853714,1732183851033,-764.94,0.00041095,18]
[342853715,1732183851042,-500.0,0.00041095,18]
[342853716,1732183851053,-500.0,0.00041095,18]
[342853717,1732183851062,-5126.99,0.00041095,18]
[342853718,1732183851072,-500.0,0.00041095,18]
[342853719,1732183851084,-789.19,0.00041095,18]
[342853720,1732183851093,-1874.55,0.00041095,18]
[342853721,1732183851103,-500.0,0.00041095,18]
[342853722,1732183851112,-708.08,0.00041095,18]
[342853723,1732183851123,-500.0,0.00041095,18]
[342853724,1732183851133,-500.0,0.00041095,18]
[342853725,1732183851143,-500.0,0.00041095,18]
[342853726,1732183851153,-500.0,0.00041095,18]
[342853727,1732183851163,-500.0,0.00041095,18]
[342853728,1732183851174,-500.0,0.00041095,18]